fUST/lending_fUST_20251008
["ID","MTS","AMOUNT","RATE_DAILY","PERIOD"]
[389966571,1759912242306,-151.0,0.00021369,7]
[389966573,1759912242319,-474.12077266,0.00021369,2]
[389966576,1759912242331,-151.0,0.00021369,7]
[389966578,1759912242343,-151.0,0.00021369,7]
[389966581,1759912242357,-151.0,0.00021369,7]
[389966583,1759912242369,-1135.42,0.00021369,2]
[389966586,1759912242383,-500.0,0.00021369,2]
[389966588,1759912242398,-151.0,0.00021369,7]
[389966590,1759912242410,-151.0,0.00021369,7]
[389966593,1759912242423,-151.0,0.00021369,7]
[389966595,1759912242435,-151.0,0.00021369,7]
[389966597,1759912242448,-500.0,0.00021369,2]
[389966600,1759912242463,-151.0,0.00021369,7]
[389966602,1759912242475,-500.0,0.00021369,2]
[389966604,1759912242487,-154.653116,0.00021369,7]
[389966606,1759912242497,-151.0,0.00021369,7]
[389966609,1759912242510,-507.45699498,0.00021369,2]
[389966611,1759912242522,-500.0,0.00021369,2]
[389966614,1759912242540,-151.0,0.00021369,7]
[389966616,1759912242553,-151.0,0.00021369,7]
[389966618,1759912242565,-512.96,0.00021369,2]
[389966621,1759912242579,-500.0,0.00021369,2]
[389966623,1759912242592,-151.0,0.00021369,7]
[389966626,1759912242606,-500.46448653,0.00021369,2]
[389966628,1759912242617,-151.0,0.00021369,7]
[389966630,1759912242628,-500.0,0.00021369,2]
[389966632,1759912242640,-501.38241877,0.00021369,2]
[389966635,1759912242652,-2101.75,0.00021369,2]
[389966638,1759912242667,-500.0,0.00021369,2]
[389966640,1759912242679,-500.0,0.00021369,2]
[389966642,1759912242695,-507.46758742,0.00021369,2]
[389966645,1759912242707,-500.0,0.00021369,2]
[389966650,1759912242720,-500.0,0.00021369,2]
[389966653,1759912242731,-500.0,0.00021369,2]
[389966655,1759912242742,-571.66,0.00021369,2]
[389966658,1759912242753,-500.0,0.00021369,2]
[389966660,1759912242764,-500.0,0.00021369,2]
[389966662,1759912242778,-500.0,0.00021369,2]
[389966665,1759912242790,-6250.4363173,0.00021369,2]
[389966667,1759912242801,-634.54,0.00021369,2]
[389966669,1759912242811,-2241.08,0.00021369,2]
[389966671,1759912242824,-151.0,0.00021369,7]
[389966673,1759912242835,-151.0,0.00021369,7]
[389966676,1759912242847,-563.52,0.00021369,2]
[389966678,1759912242859,-151.0,0.00021369,7]
[389966680,1759912242872,-151.0,0.00021369,7]
[389966682,1759912242884,-151.0,0.00021369,7]
[389966684,1759912242896,-151.0,0.00021369,7]
[389966687,1759912242911,-500.0,0.00021369,2]
[389966689,1759912242922,-500.0,0.00021369,2]
[389966691,1759912242934,-500.0,0.00021369,2]
[389966693,1759912242945,-1292.84,0.00021369,2]
[389966695,1759912242957,-5907.89,0.00021369,2]
[389966697,1759912242968,-500.0,0.00021369,2]
[389966698,1759912242981,-500.0,0.00021369,2]
[389966699,1759912242993,-500.0,0.00021369,2]
[389966700,1759912243007,-2282.0,0.00021369,2]
[389966701,1759912243019,-500.0,0.00021369,2]
[389966702,1759912243030,-500.0,0.00021369,2]
[389966703,1759912243042,-662.79,0.00021369,2]
[389966704,1759912243054,-662.79,0.00021369,2]
[389966705,1759912243067,-662.79,0.00021369,2]
[389966706,1759912243078,-662.79,0.00021369,2]
[389966707,1759912243091,-662.79,0.00021369,2]
[389966708,1759912243102,-662.79,0.00021369,2]
[389966710,1759912243113,-662.79,0.00021369,2]
[389966712,1759912243127,-501.12144377,0.00021369,2]
[389966714,1759912243138,-662.79,0.00021369,2]
[389966716,1759912243149,-500.0,0.00021369,2]
[389966718,1759912243160,-662.79,0.00021369,2]
[389966720,1759912243172,-662.79,0.00021369,2]
[389966723,1759912243184,-662.79,0.00021369,2]
[389966725,1759912243196,-662.79,0.00021369,2]
[389966727,1759912243207,-500.0,0.00021369,2]
[389966729,1759912243218,-500.0,0.00021369,2]
[389966731,1759912243230,-662.79,0.00021369,2]
[389966734,1759912243241,-662.79,0.00021369,2]
[389966736,1759912243253,-662.79,0.00021369,2]
[389966738,1759912243263,-662.79,0.00021369,2]
[389966740,1759912243276,-662.79,0.00021369,2]
[389966743,1759912243286,-662.79,0.00021369,2]
[389966745,1759912243297,-662.79,0.00021369,2]
[389966747,1759912243309,-662.79,0.00021369,2]
[389966749,1759912243319,-662.79,0.00021369,2]
[389966751,1759912243331,-662.79,0.00021369,2]
[389966754,1759912243342,-662.79,0.00021369,2]
[389966756,1759912243354,-153.338829,0.00021369,7]
[389966758,1759912243365,-663.02897305,0.00021369,2]
[389966760,1759912243381,-1145.13,0.00021369,2]
[389966763,1759912243393,-151.0,0.00021369,7]
[389966765,1759912243404,-151.0,0.00021369,7]
[389966767,1759912243416,-151.0,0.00021369,7]
[389966769,1759912243428,-151.0,0.00021369,7]
[389966772,1759912243439,-183.941907,0.00021369,7]
[389966774,1759912243450,-482.28762213,0.00021369,2]
[389966776,1759912243461,-151.0,0.00021369,7]
[389966778,1759912243472,-151.0,0.00021369,7]
[389966780,1759912243484,-500.0,0.00021369,2]
[389966783,1759912243498,-151.0,0.00021369,7]
[389966785,1759912243510,-500.0,0.00021369,2]
[389966787,1759912243521,-151.0,0.00021369,7]
[389966789,1759912243534,-919.96,0.00021369,2]
[389966792,1759912243546,-500.0,0.00021369,2]
[389966794,1759912243557,-151.0,0.00021369,7]
[389966796,1759912243569,-190.334255,0.00021369,7]
[389966798,1759912243583,-151.0,0.00021369,7]
[389966801,1759912243594,-169.3572836,0.00021369,2]
[389966803,1759912243605,-500.0,0.00021369,2]
[389966805,1759912243617,-500.0,0.00021369,2]
[389966807,1759912243631,-1067.97,0.00021369,2]
[389966809,1759912243643,-500.0,0.00021369,2]
[389966812,1759912243654,-1263.89,0.00021369,2]
[389966814,1759912243666,-2548.97,0.00021369,2]
[389966816,1759912243678,-414.29215324,0.00021369,2]
[389966818,1759912243690,-605.03987459,0.00021369,2]
[389966821,1759912243701,-501.61389189,0.00021369,2]
[389966823,1759912243713,-500.0,0.00021369,2]
[389966825,1759912243724,-682.06,0.00021369,2]
[389966827,1759912243736,-211.68002786,0.00021369,2]
[389966829,1759912243746,-500.0,0.00021369,2]
[389966831,1759912243758,-455.37443687,0.00021369,2]
[389966834,1759912243769,-500.0,0.00021369,2]
[389966836,1759912243784,-500.0,0.00021369,2]
[389966838,1759912243795,-941.3,0.00021369,2]
[389966840,1759912243807,-151.0,0.00021369,2]
[389966843,1759912243819,-500.0,0.00021369,2]
[389966845,1759912243831,-502.06518896,0.00021369,2]
[389966847,1759912243842,-151.0,0.00021369,2]
[389966849,1759912243854,-500.0,0.00021369,2]
[389966851,1759912243865,-500.0,0.00021369,2]
[389966853,1759912243878,-151.0,0.00021369,7]
[389966856,1759912243889,-151.0,0.00021369,7]
[389966858,1759912243901,-151.0,0.00021369,2]
[389966860,1759912243912,-500.0,0.00021369,2]
[389966862,1759912243924,-151.0,0.00021369,2]
[389966864,1759912243941,-500.0,0.00021369,2]
[389966866,1759912243955,-584.03,0.00021369,2]
[389966869,1759912243965,-206.51381866,0.00021369,2]
[389966871,1759912243977,-500.0,0.00021369,2]
[389966873,1759912243989,-900.28,0.00021369,2]
[389966875,1759912244001,-900.28,0.00021369,2]
[389966878,1759912244013,-500.0,0.00021369,2]
[389966880,1759912244024,-900.28,0.00021369,2]
[389966882,1759912244035,-900.28,0.00021369,2]
[389966884,1759912244045,-500.0,0.00021369,2]
[389966886,1759912244057,-900.28,0.00021369,2]
[389966889,1759912244068,-900.28,0.00021369,2]
[389966891,1759912244079,-900.28,0.00021369,2]
[389966893,1759912244091,-900.28,0.00021369,2]
[389966895,1759912244103,-900.28,0.00021369,2]
[389966897,1759912244114,-900.28,0.00021369,2]
[389966900,1759912244126,-900.28,0.00021369,2]
[389966902,1759912244137,-900.28,0.00021369,2]
[389966904,1759912244148,-689.72,0.00021369,2]
[389966906,1759912244159,-900.28,0.00021369,2]
[389966909,1759912244171,-900.28,0.00021369,2]
[389966911,1759912244182,-900.28,0.00021369,2]
[389966913,1759912244193,-151.0,0.00021369,7]
[389966915,1759912244204,-900.28,0.00021369,2]
[389966917,1759912244215,-900.28,0.00021369,2]
[389966919,1759912244227,-900.28,0.00021369,2]
[389966922,1759912244238,-900.28,0.00021369,2]
[389966924,1759912244249,-900.28,0.00021369,2]
[389966926,1759912244260,-900.28,0.00021369,2]
[389966928,1759912244271,-900.28,0.00021369,2]
[389966931,1759912244282,-900.28,0.00021369,2]
[389966933,1759912244294,-900.34636747,0.00021369,2]
[389966935,1759912244305,-151.0,0.00021369,7]
[389966937,1759912244315,-500.0,0.00021369,2]
[389966939,1759912244326,-151.0,0.00021369,7]
[389966942,1759912244337,-151.0,0.00021369,7]
[389966944,1759912244347,-500.0,0.00021369,2]
[389966946,1759912244355,-500.0,0.00021369,2]
[389966947,1759912244364,-1136.12,0.00021369,2]
[389966949,1759912244376,-653.49,0.00021369,2]
[389966951,1759912244386,-500.0,0.00021369,2]
[389966954,1759912244394,-1916.23,0.00021369,2]
[389966956,1759912244404,-409.03370541,0.00021369,2]
[389966991,1759912244712,-151.0,0.00021369,7]
[389966995,1759912244737,-151.0,0.00021369,7]
[389966997,1759912244752,-521.56841181,0.00021369,2]
[389966999,1759912244762,-151.0,0.00021369,7]
[389967001,1759912244771,-151.0,0.00021369,7]
[389967004,1759912244785,-500.0,0.00021369,2]
[389967005,1759912244795,-866.75,0.00021369,2]
[389967008,1759912244804,-500.0,0.00021369,2]
[389967009,1759912244814,-151.0,0.00021369,7]
[389967011,1759912244825,-151.0,0.00021369,7]
[389967013,1759912244835,-500.0,0.00021369,2]
[389967015,1759912244844,-6237.73,0.00021369,2]
[389967017,1759912244854,-500.0,0.00021369,2]
[389967019,1759912244864,-580.81,0.00021369,2]
[389967021,1759912244875,-500.0,0.00021369,2]
[389967023,1759912244885,-1558.54,0.00021369,2]
[389967025,1759912244895,-690.16,0.00021369,2]
[389967027,1759912244904,-326.795917,0.00021369,7]
[389967029,1759912244915,-326.795917,0.00021369,7]
[389967031,1759912244924,-326.795917,0.00021369,7]
[389967033,1759912244934,-326.795917,0.00021369,7]
[389967035,1759912244943,-326.795917,0.00021369,7]
[389967037,1759912244953,-2877.6,0.00021369,2]
[389967039,1759912244963,-326.795917,0.00021369,7]
[389967041,1759912244972,-802.58,0.00021369,2]
[389967043,1759912244981,-151.0,0.00021369,7]
[389967045,1759912244990,-151.0,0.00021369,7]
[389967047,1759912245000,-326.795917,0.00021369,7]
[389967049,1759912245010,-326.795917,0.00021369,7]
[389967051,1759912245019,-151.0,0.00021369,7]
[389967053,1759912245028,-151.0,0.00021369,7]
[389967055,1759912245037,-151.0,0.00021369,7]
[389967057,1759912245046,-151.0,0.00021369,7]
[389967059,1759912245055,-1513.45,0.00021369,2]
[389967061,1759912245065,-151.0,0.00021369,7]
[389967063,1759912245074,-151.0,0.00021369,7]
[389967065,1759912245083,-697.54,0.00021369,2]
[389967068,1759912245093,-500.0,0.00021369,2]
[389967069,1759912245103,-465.95510797,0.00021369,2]
[389967071,1759912245111,-180.11,0.00021369,2]
[389967073,1759912245120,-151.0,0.00021369,7]
[389967075,1759912245131,-500.0,0.00021369,2]
[389967077,1759912245140,-151.0,0.00021369,7]
[389967079,1759912245149,-968.13,0.00021369,2]
[389967081,1759912245159,-1345.15,0.00021369,2]
[389967083,1759912245168,-2038.01,0.00021369,2]
[389967085,1759912245177,-151.0,0.00021369,7]
[389967087,1759912245186,-1572.12,0.00021369,2]
[389967089,1759912245195,-151.0,0.00021369,7]
[389967091,1759912245205,-151.0,0.00021369,7]
[389967093,1759912245213,-151.0,0.00021369,7]
[389967095,1759912245222,-500.0,0.00021369,2]
[389967097,1759912245232,-2183.08,0.00021369,2]
[389967099,1759912245241,-151.327729,0.00021369,7]
[389967101,1759912245251,-151.0,0.00021369,7]
[389967103,1759912245260,-151.0,0.00021369,7]
[389967105,1759912245269,-151.0,0.00021369,7]
[389967107,1759912245278,-151.0,0.00021369,7]
[389967109,1759912245288,-152.22753,0.00021369,7]
[389967111,1759912245297,-1082.23,0.00021369,2]
[389967113,1759912245307,-500.0,0.00021369,2]
[389967115,1759912245316,-500.0,0.00021369,2]
[389967117,1759912245326,-500.0,0.00021369,2]
[389967119,1759912245335,-151.0,0.00021369,7]
[389967121,1759912245344,-1092.14,0.00021369,2]
[389967123,1759912245353,-151.0,0.00021369,7]
[389967125,1759912245363,-151.0,0.00021369,7]
[389967127,1759912245373,-151.0,0.00021369,7]
[389967129,1759912245385,-152.38589367,0.00021369,2]
[389967131,1759912245394,-151.0,0.00021369,7]
[389967134,1759912245403,-151.82767942,0.00021369,2]
[389967136,1759912245414,-151.0,0.00021369,7]
[389967137,1759912245423,-151.27733105,0.00021369,2]
[389967139,1759912245432,-151.0,0.00021369,7]
[389967141,1759912245441,-152.00814795,0.00021369,2]
[389967143,1759912245451,-151.0,0.00021369,7]
[389967145,1759912245460,-151.35364167,0.00021369,2]
[389967146,1759912245469,-500.0,0.00021369,2]
[389967147,1759912245478,-151.21981195,0.00021369,2]
[389967148,1759912245487,-500.0,0.00021369,2]
[389967149,1759912245496,-500.0,0.00021369,2]
[389967151,1759912245506,-573.97,0.00021369,2]
[389967153,1759912245515,-151.0,0.00021369,7]
[389967155,1759912245525,-151.0,0.00021369,7]
[389967157,1759912245534,-500.0,0.00021369,2]
[389967159,1759912245543,-151.0,0.00021369,7]
[389967161,1759912245552,-151.0,0.00021369,7]
[389967163,1759912245561,-794.23,0.00021369,2]
[389967165,1759912245570,-500.0,0.00021369,2]
[389967167,1759912245580,-151.0,0.00021369,7]
[389967169,1759912245590,-151.0,0.00021369,7]
[389967171,1759912245600,-151.0,0.00021369,7]
[389967173,1759912245610,-151.0,0.00021369,7]
[389967175,1759912245620,-1561.74,0.00021369,2]
[389967177,1759912245632,-638.77,0.00021369,2]
[389967179,1759912245642,-500.0,0.00021369,2]
[389967181,1759912245651,-151.0,0.00021369,7]
[389967183,1759912245661,-151.0,0.00021369,7]
[389967185,1759912245670,-500.0,0.00021369,2]
[389967187,1759912245679,-500.0,0.00021369,2]
[389967189,1759912245688,-1000.0,0.00021369,2]
[389967191,1759912245698,-972.97,0.00021369,2]
[389967193,1759912245707,-151.0,0.00021369,7]
[389967195,1759912245716,-151.0,0.00021369,7]
[389967197,1759912245726,-151.0,0.00021369,7]
[389967199,1759912245737,-1450.16,0.00021369,2]
[389967201,1759912245746,-500.0,0.00021369,2]
[389967203,1759912245754,-151.0,0.00021369,7]
[389967205,1759912245764,-151.561202,0.00021369,7]
[389967207,1759912245773,-518.51,0.00021369,2]
[389967209,1759912245786,-500.0,0.00021369,2]
[389967211,1759912245795,-480.5587753,0.00021369,2]
[389967213,1759912245804,-501.42384181,0.00021369,2]
[389967215,1759912245819,-1322.93,0.00021369,2]
[389967217,1759912245828,-500.0,0.00021369,2]
[389967219,1759912245837,-500.0,0.00021369,2]
[389967221,1759912245846,-4690.88,0.00021369,2]
[389967223,1759912245859,-500.0,0.00021369,2]
[389967225,1759912245868,-5619.05,0.00021369,2]
[389967228,1759912245879,-596.5,0.00021369,2]
[389967230,1759912245889,-500.0,0.00021369,2]
[389967232,1759912245898,-500.0,0.00021369,2]
[389967234,1759912245907,-1112.03,0.00021369,2]
[389967236,1759912245916,-500.0,0.00021369,2]
[389967238,1759912245925,-1648.65,0.00021369,2]
[389967240,1759912245934,-500.0,0.00021369,2]
[389967242,1759912245943,-519.18,0.00021369,2]
[389967244,1759912245952,-356.93671944,0.00021369,2]
[389967246,1759912245961,-500.0,0.00021369,2]
[389967247,1759912245971,-1693.4,0.00021369,2]
[389967249,1759912245980,-424.27500569,0.00021369,2]
[389967251,1759912245990,-2154.51,0.00021369,2]
[389967253,1759912245999,-151.0,0.00021369,7]
[389967256,1759912246008,-151.0,0.00021369,7]
[389967257,1759912246018,-151.0,0.00021369,7]
[389967260,1759912246027,-500.0,0.00021369,2]
[389967262,1759912246038,-1025.84,0.00021369,2]
[389967264,1759912246048,-402.00603937,0.00021369,2]
[389967266,1759912246057,-1179.83,0.00021369,2]
[389967268,1759912246067,-500.0,0.00021369,2]
[389967270,1759912246076,-1122.75,0.00021369,2]
[389967272,1759912246085,-500.0,0.00021369,2]
[389967274,1759912246094,-500.0,0.00021369,2]
[389967276,1759912246105,-500.0,0.00021369,2]
[389967278,1759912246114,-23153.77,0.00021369,2]
[389967280,1759912246127,-500.0,0.00021369,2]
[389967282,1759912246136,-770.0,0.00021369,2]
[389967284,1759912246146,-1509.04,0.00021369,2]
[389967286,1759912246155,-1509.04,0.00021369,2]
[389967288,1759912246164,-1509.04,0.00021369,2]
[389967290,1759912246174,-1509.04,0.00021369,2]
[389967292,1759912246183,-1509.04,0.00021369,2]
[389967294,1759912246192,-1509.04,0.00021369,2]
[389967296,1759912246201,-1509.04,0.00021369,2]
[389967298,1759912246210,-1509.04,0.00021369,2]
[389967300,1759912246219,-1509.04,0.00021369,2]
[389967302,1759912246228,-1509.04,0.00021369,2]
[389967304,1759912246237,-1509.04,0.00021369,2]
[389967306,1759912246246,-1509.04,0.00021369,2]
[389967308,1759912246255,-1509.04,0.00021369,2]
[389967310,1759912246265,-1509.04,0.00021369,2]
[389967312,1759912246274,-1509.04,0.00021369,2]
[389967314,1759912246283,-1509.04,0.00021369,2]
[389967316,1759912246293,-822.0,0.00021369,2]
[389967318,1759912246301,-500.0,0.00021369,2]
[389967319,1759912246310,-1509.04,0.00021369,2]
[389967320,1759912246319,-1509.04,0.00021369,2]
[389967321,1759912246330,-500.0,0.00021369,2]
[389967322,1759912246340,-1509.04,0.00021369,2]
[389967323,1759912246350,-1509.04,0.00021369,2]
[389967324,1759912246359,-2311.32,0.00021369,2]
[389967325,1759912246369,-1509.04,0.00021369,2]
[389967326,1759912246380,-1509.04,0.00021369,2]
[389967327,1759912246391,-500.0,0.00021369,2]
[389967328,1759912246401,-151.33548529,0.00021369,2]
[389967329,1759912246411,-1509.04,0.00021369,2]
[389967330,1759912246420,-1509.2412304,0.00021369,2]
[389967331,1759912246429,-500.0,0.00021369,2]
[389967332,1759912246439,-500.0,0.00021369,2]
[389967333,1759912246448,-151.0,0.00021369,2]
[389967334,1759912246458,-746.88,0.00021369,2]
[389967335,1759912246467,-727.01,0.00021369,2]
[389967336,1759912246476,-500.0,0.00021369,2]
[389967337,1759912246486,-5077.29,0.00021369,2]
[389967338,1759912246495,-500.0,0.00021369,2]
[389967339,1759912246505,-5532.31,0.00021369,2]
[389967340,1759912246515,-500.0,0.00021369,2]
[389967341,1759912246527,-842.8,0.00021369,2]
[389967342,1759912246536,-175.57269617,0.00021369,2]
[389967343,1759912246546,-501.12586889,0.00021369,2]
[389967344,1759912246555,-151.0,0.00021369,2]
[389967345,1759912246565,-500.0,0.00021369,2]
[389967346,1759912246574,-1768.68,0.00021369,2]
[389967347,1759912246584,-2568.34,0.00021369,2]
[389967348,1759912246594,-500.0,0.00021369,2]
[389967349,1759912246604,-554.32,0.00021369,2]
[389967350,1759912246613,-655.84,0.00021369,2]
[389967351,1759912246622,-151.0,0.00021369,2]
[389967352,1759912246632,-151.0,0.00021369,7]
[389967353,1759912246642,-500.0,0.00021369,2]
[389967354,1759912246651,-151.0,0.00021369,7]
[389967355,1759912246660,-151.0,0.00021369,7]
[389967356,1759912246670,-151.00000077,0.00021369,7]
[389967357,1759912246679,-10113.81,0.00021369,2]
[389967359,1759912246688,-151.0,0.00021369,7]
[389967360,1759912246699,-151.0,0.00021369,7]
[389967361,1759912246708,-500.0,0.00021369,2]
[389967362,1759912246717,-151.0,0.00021369,7]
[389967363,1759912246726,-1674.52,0.00021369,2]
[389967364,1759912246735,-5742.0,0.00021369,2]
[389967365,1759912246745,-151.0,0.00021369,7]
[389967366,1759912246755,-500.0,0.00021369,2]
[389967367,1759912246764,-151.0,0.00021369,7]
[389967368,1759912246776,-500.0,0.00021369,2]
[389967369,1759912246788,-151.0,0.00021369,7]
[389967370,1759912246797,-1743.28,0.00021369,2]
[389967371,1759912246806,-10058.96,0.00021369,2]
[389967372,1759912246816,-500.0,0.00021369,2]
[389967373,1759912246827,-500.0,0.00021369,2]
[389967374,1759912246837,-1809.98,0.00021369,2]
[389967375,1759912246848,-151.90159,0.00021369,7]
[389967376,1759912246858,-500.0,0.00021369,2]
[389967377,1759912246868,-1517.07,0.00021369,2]
[389967378,1759912246878,-4310.13,0.00021369,2]
[389967379,1759912246888,-1653.96,0.00021369,2]
[389967380,1759912246897,-1013.27,0.00021369,2]
[389967381,1759912246907,-151.778011,0.00021369,7]
[389967382,1759912246917,-226.914944,0.00021369,7]
[389967383,1759912246926,-894.830191,0.00021369,7]
[389967384,1759912246935,-151.0,0.00021369,7]
[389967385,1759912246945,-226.914944,0.00021369,7]
[389967386,1759912246955,-894.830191,0.00021369,7]
[389967387,1759912246965,-151.0,0.00021369,7]
[389967388,1759912246974,-226.914944,0.00021369,7]
[389967389,1759912246984,-894.830191,0.00021369,7]
[389967390,1759912246994,-151.0,0.00021369,7]
[389967391,1759912247003,-151.0,0.00021369,7]
[389967392,1759912247013,-263.120627,0.00021369,7]
[389967393,1759912247023,-500.0,0.00021369,2]
[389967394,1759912247033,-894.830191,0.00021369,7]
[389967395,1759912247042,-226.914944,0.00021369,7]
[389967396,1759912247052,-894.830191,0.00021369,7]
[389967397,1759912247062,-500.0,0.00021369,2]
[389967398,1759912247071,-226.914944,0.00021369,7]
[389967400,1759912247080,-894.830191,0.00021369,7]
[389967402,1759912247089,-226.914944,0.00021369,7]
[389967404,1759912247099,-662.23,0.00021369,2]
[389967406,1759912247108,-500.0,0.00021369,2]
[389967408,1759912247117,-894.830191,0.00021369,7]
[389967410,1759912247128,-160.0,0.00021369,7]
[389967412,1759912247137,-894.830191,0.00021369,7]
[389967414,1759912247146,-2923.1,0.00021369,2]
[389967416,1759912247156,-226.914944,0.00021369,7]
[389967418,1759912247165,-894.830191,0.00021369,7]
[389967420,1759912247174,-226.914944,0.00021369,7]
[389967422,1759912247183,-226.914944,0.00021369,7]
[389967424,1759912247192,-894.830191,0.00021369,7]
[389967426,1759912247201,-894.830191,0.00021369,7]
[389967428,1759912247211,-11227.08,0.00021369,2]
[389967430,1759912247220,-226.914944,0.00021369,7]
[389967432,1759912247229,-226.914944,0.00021369,7]
[389967434,1759912247239,-226.914944,0.00021369,7]
[389967436,1759912247248,-1157.0,0.00021369,2]
[389967438,1759912247257,-894.830191,0.00021369,7]
[389967440,1759912247266,-1065.5,0.00021369,2]
[389967442,1759912247276,-500.0,0.00021369,2]
[389967444,1759912247285,-500.0,0.00021369,2]
[389967446,1759912247295,-500.0,0.00021369,2]
[389967448,1759912247306,-500.0,0.00021369,2]
[389967449,1759912247316,-500.0,0.00021369,2]
[389967450,1759912247326,-957.1,0.00021369,2]
[389967451,1759912247336,-1587.28,0.00021369,2]
[389967452,1759912247345,-502.25990697,0.00021369,2]
[389967453,1759912247355,-502.89986826,0.00021369,2]
[389967454,1759912247364,-500.0,0.00021369,2]
[389967455,1759912247373,-559.68,0.00021369,2]
[389967456,1759912247382,-866.39,0.00021369,2]
[389967457,1759912247392,-500.0,0.00021369,2]
[389967458,1759912247402,-3520.86,0.00021369,2]
[389967459,1759912247411,-590.03,0.00021369,2]
[389967460,1759912247421,-500.0,0.00021369,2]
[389967461,1759912247431,-500.0,0.00021369,2]
[389967462,1759912247440,-500.0,0.00021369,2]
[389967463,1759912247449,-1794.05,0.00021369,2]
[389967464,1759912247459,-500.0,0.00021369,2]
[389967465,1759912247469,-500.0,0.00021369,2]
[389967466,1759912247478,-2405.74,0.00021369,2]
[389967467,1759912247488,-331.089593,0.00021369,7]
[389967468,1759912247497,-331.089593,0.00021369,7]
[389967469,1759912247508,-331.089593,0.00021369,7]
[389967470,1759912247519,-500.0,0.00021369,2]
[389967471,1759912247528,-672.82,0.00021369,2]
[389967472,1759912247538,-331.089593,0.00021369,7]
[389967473,1759912247548,-465.6943921,0.00021369,2]
[389967474,1759912247558,-331.089593,0.00021369,7]
[389967475,1759912247568,-500.0,0.00021369,2]
[389967476,1759912247577,-331.089593,0.00021369,7]
[389967477,1759912247587,-331.089593,0.00021369,7]
[389967478,1759912247597,-500.0,0.00021369,2]
[389967479,1759912247606,-331.089593,0.00021369,7]
[389967480,1759912247616,-331.089593,0.00021369,7]
[389967481,1759912247628,-464.31311443,0.00021369,2]
[389967482,1759912247637,-3980.97,0.00021369,2]
[389967483,1759912247647,-331.089593,0.00021369,7]
[389967484,1759912247656,-331.089593,0.00021369,7]
[389967485,1759912247666,-331.089593,0.00021369,7]
[389967486,1759912247676,-500.41492233,0.00021369,2]
[389967487,1759912247686,-538.31929527,0.00021369,2]
[389967488,1759912247696,-500.0,0.00021369,2]
[389967489,1759912247706,-500.0,0.00021369,2]
[389967490,1759912247716,-500.0,0.00021369,2]
[389967491,1759912247725,-151.0,0.00021369,7]
[389967492,1759912247736,-3356.82,0.00021369,2]
[389967493,1759912247745,-151.819959,0.00021369,7]
[389967494,1759912247755,-500.0,0.00021369,2]
[389967495,1759912247765,-500.0,0.00021369,2]
[389967496,1759912247774,-500.0,0.00021369,2]
[389967497,1759912247789,-482.57156272,0.00021369,2]
[389967498,1759912247798,-4841.18,0.00021369,2]
[389967499,1759912247808,-500.0,0.00021369,2]
[389967500,1759912247818,-531.5,0.00021369,2]
[389967501,1759912247829,-546.78,0.00021369,2]